[Event "Early-Titled-Tuesday-Blitz-October-24-2023"]
[Site "Chess.com"]
[Date "2023.10.24"]
[Round "3"]
[White "Chessmissile07"]
[Black "DanielTitichoca"]
[Result "0-1"]
[WhiteElo "2913"]
[BlackElo "2636"]
[TimeControl "180+1"]
[EndTime "8:27:43 PDT"]
[Termination "DanielTitichoca won on time"]

1. e4 {[%clk 0:03:00.9]} 1... c5 {[%clk 0:02:58.5]} 2. Nc3 {[%clk 0:03:00.6]}
2... Nc6 {[%clk 0:02:56.7]} 3. Bb5 {[%clk 0:03:00.1]} 3... Nd4 {[%clk
0:02:55.9]} 4. Bc4 {[%clk 0:03:00.1]} 4... g6 {[%clk 0:02:56]} 5. Nf3 {[%clk
0:02:59.9]} 5... Bg7 {[%clk 0:02:56.1]} 6. Nxd4 {[%clk 0:03:00.1]} 6... cxd4
{[%clk 0:02:56.1]} 7. Qf3 {[%clk 0:03:00.6]} 7... e6 {[%clk 0:02:15.7]} 8. Nb5
{[%clk 0:03:00.3]} 8... d5 {[%clk 0:02:10.8]} 9. exd5 {[%clk 0:02:56]} 9... a6
{[%clk 0:02:04.8]} 10. dxe6 {[%clk 0:02:37.1]} 10... fxe6 {[%clk 0:01:59.4]} 11.
Na3 {[%clk 0:02:15.2]} 11... Nf6 {[%clk 0:01:59.9]} 12. d3 {[%clk 0:02:10.6]}
12... O-O {[%clk 0:02:00.3]} 13. O-O {[%clk 0:02:11.2]} 13... Nd5 {[%clk
0:01:56.6]} 14. Qg3 {[%clk 0:02:08.5]} 14... b5 {[%clk 0:01:56.5]} 15. Bb3
{[%clk 0:02:08.7]} 15... Bb7 {[%clk 0:01:53.1]} 16. Bd2 {[%clk 0:02:04.7]} 16...
Rf5 {[%clk 0:01:49.2]} 17. Rae1 {[%clk 0:02:03.4]} 17... Qd7 {[%clk 0:01:47.9]}
18. c4 {[%clk 0:01:36.5]} 18... dxc3 {[%clk 0:01:45]} 19. bxc3 {[%clk
0:01:36.8]} 19... Re8 {[%clk 0:01:39.7]} 20. c4 {[%clk 0:01:35.8]} 20... Nf6
{[%clk 0:01:35.1]} 21. cxb5 {[%clk 0:01:33.5]} 21... axb5 {[%clk 0:01:36]} 22.
Nc2 {[%clk 0:01:24.9]} 22... Bd5 {[%clk 0:01:33.1]} 23. Ne3 {[%clk 0:01:16]}
23... Nh5 {[%clk 0:01:31.9]} 24. Qh3 {[%clk 0:01:15.5]} 24... Nf4 {[%clk
0:01:29]} 25. Qg3 {[%clk 0:00:46.2]} 25... Nh5 {[%clk 0:01:27.6]} 26. Qg4 {[%clk
0:00:38.7]} 26... Bxb3 {[%clk 0:01:24.2]} 27. axb3 {[%clk 0:00:28.9]} 27... Rf4
{[%clk 0:01:19]} 28. Qh3 {[%clk 0:00:28.3]} 28... Qxd3 {[%clk 0:01:15.7]} 29.
Ba5 {[%clk 0:00:19.7]} 29... Qxb3 {[%clk 0:01:12.6]} 30. Rb1 {[%clk 0:00:19.2]}
30... Qa4 {[%clk 0:01:08.7]} 31. Bc7 {[%clk 0:00:19.7]} 31... Rf7 {[%clk
0:01:03.1]} 32. Bg3 {[%clk 0:00:19.3]} 32... e5 {[%clk 0:01:00.2]} 33. Qg4
{[%clk 0:00:19]} 33... Nf4 {[%clk 0:00:59.2]} 34. Bxf4 {[%clk 0:00:15]} 34...
Qxf4 {[%clk 0:00:57.5]} 35. Qe2 {[%clk 0:00:13.7]} 35... b4 {[%clk 0:00:54.9]}
36. Nd5 {[%clk 0:00:13.5]} 36... Qd4 {[%clk 0:00:53.2]} 37. Nxb4 {[%clk
0:00:13.7]} 37... e4 {[%clk 0:00:53.7]} 38. Nc2 {[%clk 0:00:13.1]} 38... Qd3
{[%clk 0:00:53.9]} 39. Rfe1 {[%clk 0:00:12.7]} 39... Qc3 {[%clk 0:00:36.8]} 40.
Ne3 {[%clk 0:00:11.9]} 40... Rc8 {[%clk 0:00:32.6]} 41. h3 {[%clk 0:00:07.8]}
41... Bd4 {[%clk 0:00:24.6]} 42. Rbd1 {[%clk 0:00:04.2]} 42... Rcf8 {[%clk
0:00:18]} 0-1

[Event "Early-Titled-Tuesday-Blitz-October-24-2023"]
[Site "Chess.com"]
[Date "2023.10.24"]
[Round "3"]
[White "Road2GM3000"]
[Black "NovoselovRoman"]
[Result "0-1"]
[WhiteElo "2387"]
[BlackElo "2571"]
[TimeControl "180+1"]
[EndTime "8:27:43 PDT"]
[Termination "NovoselovRoman won by checkmate"]

1. d4 {[%clk 0:03:00.9]} 1... Nf6 {[%clk 0:02:58]} 2. c4 {[%clk 0:02:59.6]} 2...
e6 {[%clk 0:02:58]} 3. Nc3 {[%clk 0:03:00.3]} 3... Bb4 {[%clk 0:02:56]} 4. Nf3
{[%clk 0:03:01]} 4... b6 {[%clk 0:02:55.4]} 5. Bg5 {[%clk 0:03:01.2]} 5... Bb7
{[%clk 0:02:55]} 6. e3 {[%clk 0:03:01.8]} 6... h6 {[%clk 0:02:52.9]} 7. Bh4
{[%clk 0:03:01.6]} 7... O-O {[%clk 0:02:48.6]} 8. Bd3 {[%clk 0:03:01.7]} 8... d5
{[%clk 0:02:48.3]} 9. cxd5 {[%clk 0:03:01.5]} 9... exd5 {[%clk 0:02:48.2]} 10.
O-O {[%clk 0:03:01.5]} 10... Nbd7 {[%clk 0:02:46]} 11. Ne5 {[%clk 0:03:01.9]}
11... Be7 {[%clk 0:02:25]} 12. f4 {[%clk 0:03:01.4]} 12... Ne4 {[%clk
0:02:24.9]} 13. Bxe7 {[%clk 0:02:59.9]} 13... Qxe7 {[%clk 0:02:24.4]} 14. Qc2
{[%clk 0:02:50.2]} 14... Nxe5 {[%clk 0:02:08.5]} 15. fxe5 {[%clk 0:02:50.4]}
15... Ng5 {[%clk 0:02:08]} 16. Rac1 {[%clk 0:02:42.6]} 16... c5 {[%clk
0:01:55.1]} 17. Nb5 {[%clk 0:02:37.7]} 17... Ba6 {[%clk 0:01:39]} 18. Nd6 {[%clk
0:02:36.1]} 18... Bxd3 {[%clk 0:01:32]} 19. Qxd3 {[%clk 0:02:37]} 19... f6
{[%clk 0:01:31]} 20. Nf5 {[%clk 0:02:34]} 20... Qe6 {[%clk 0:01:22.5]} 21. exf6
{[%clk 0:01:18.4]} 21... Rxf6 {[%clk 0:01:15]} 22. Ng3 {[%clk 0:01:19.1]} 22...
Rxf1+ {[%clk 0:01:07.5]} 23. Rxf1 {[%clk 0:01:18.8]} 23... Re8 {[%clk
0:01:05.2]} 24. Re1 {[%clk 0:01:19.1]} 24... c4 {[%clk 0:01:02.5]} 25. Qc2
{[%clk 0:01:12.7]} 25... b5 {[%clk 0:01:00.7]} 26. a4 {[%clk 0:01:12.3]} 26...
b4 {[%clk 0:00:57.1]} 27. h4 {[%clk 0:01:07.6]} 27... Nf7 {[%clk 0:00:52.2]} 28.
Qe2 {[%clk 0:00:58.3]} 28... Nd6 {[%clk 0:00:46.6]} 29. Qh5 {[%clk 0:00:51.2]}
29... Kh7 {[%clk 0:00:41.7]} 30. Kh2 {[%clk 0:00:45.2]} 30... g6 {[%clk
0:00:40]} 31. Qe2 {[%clk 0:00:40.5]} 31... Qf6 {[%clk 0:00:37.8]} 32. Kh3 {[%clk
0:00:38.9]} 32... Ne4 {[%clk 0:00:32.8]} 33. Rf1 {[%clk 0:00:33.4]} 33... Qe6+
{[%clk 0:00:29.6]} 34. Kh2 {[%clk 0:00:29.7]} 34... Nxg3 {[%clk 0:00:24.4]} 35.
Kxg3 {[%clk 0:00:28.4]} 35... Qd6+ {[%clk 0:00:25.3]} 36. Kh3 {[%clk 0:00:16.8]}
36... Re4 {[%clk 0:00:25.5]} 37. Rf7+ {[%clk 0:00:16.2]} 37... Kg8 {[%clk
0:00:25.3]} 38. Qf3 {[%clk 0:00:16.3]} 38... Qe6+ {[%clk 0:00:25.4]} 39. Kh2
{[%clk 0:00:16.1]} 39... Qxf7 {[%clk 0:00:25.4]} 40. Qh3 {[%clk 0:00:13.8]}
40... Qf5 {[%clk 0:00:25.2]} 41. Qg3 {[%clk 0:00:13.8]} 41... Qe6 {[%clk
0:00:23.7]} 42. Qb8+ {[%clk 0:00:14.2]} 42... Kg7 {[%clk 0:00:23.8]} 43. Qxa7+
{[%clk 0:00:14.8]} 43... Qe7 {[%clk 0:00:24.1]} 44. Qa8 {[%clk 0:00:14.3]} 44...
Qd7 {[%clk 0:00:23.7]} 45. a5 {[%clk 0:00:13.8]} 45... Rxe3 {[%clk 0:00:23.6]}
46. a6 {[%clk 0:00:14.2]} 46... Qd6+ {[%clk 0:00:24.1]} 47. Kg1 {[%clk
0:00:13.6]} 47... Qf6 {[%clk 0:00:21.2]} 48. Qb7+ {[%clk 0:00:13.2]} 48... Re7
{[%clk 0:00:21.2]} 49. Qxd5 {[%clk 0:00:12.2]} 49... Re1+ {[%clk 0:00:20.6]} 50.
Kh2 {[%clk 0:00:12.1]} 50... Qxh4# {[%clk 0:00:21.5]} 0-1

[Event "Early-Titled-Tuesday-Blitz-October-24-2023"]
[Site "Chess.com"]
[Date "2023.10.24"]
[Round "3"]
[White "Resignify"]
[Black "ssgm49"]
[Result "1-0"]
[WhiteElo "2304"]
[BlackElo "1834"]
[TimeControl "180+1"]
[EndTime "8:27:43 PDT"]
[Termination "Resignify won on time"]

1. e4 {[%clk 0:03:00.9]} 1... e5 {[%clk 0:02:56.6]} 2. Nf3 {[%clk 0:02:59.1]}
2... Nc6 {[%clk 0:02:56.5]} 3. Bb5 {[%clk 0:02:58.2]} 3... a6 {[%clk 0:02:56.1]}
4. Ba4 {[%clk 0:02:58.4]} 4... Nf6 {[%clk 0:02:55.2]} 5. O-O {[%clk 0:02:56.5]}
5... b5 {[%clk 0:02:54.2]} 6. Bb3 {[%clk 0:02:56.2]} 6... Bc5 {[%clk 0:02:54.5]}
7. Re1 {[%clk 0:02:50.1]} 7... O-O {[%clk 0:02:52.5]} 8. c3 {[%clk 0:02:48.2]}
8... d6 {[%clk 0:02:50]} 9. d3 {[%clk 0:02:47.6]} 9... h6 {[%clk 0:02:44.5]} 10.
Nbd2 {[%clk 0:02:44.9]} 10... Re8 {[%clk 0:02:27.7]} 11. Nf1 {[%clk 0:02:44.1]}
11... d5 {[%clk 0:01:48.9]} 12. exd5 {[%clk 0:02:39.9]} 12... Nxd5 {[%clk
0:01:47.8]} 13. d4 {[%clk 0:02:27.8]} 13... Bb6 {[%clk 0:00:56.8]} 14. Ng3
{[%clk 0:01:36.1]} 14... Nf4 {[%clk 0:00:32.8]} 15. dxe5 {[%clk 0:01:12.2]}
15... Qxd1 {[%clk 0:00:20.4]} 16. Rxd1 {[%clk 0:01:12]} 16... Ng6 {[%clk
0:00:19.3]} 17. Bd5 {[%clk 0:01:03.5]} 17... Bb7 {[%clk 0:00:19]} 18. Kf1 {[%clk
0:00:22]} 18... Rad8 {[%clk 0:00:18.6]} 19. Bb3 {[%clk 0:00:14.9]} 19... Rxd1+
{[%clk 0:00:17.2]} 20. Bxd1 {[%clk 0:00:15.8]} 20... Ncxe5 {[%clk 0:00:16.5]}
21. Nxe5 {[%clk 0:00:16.7]} 21... Nxe5 {[%clk 0:00:15.1]} 22. Bf4 {[%clk
0:00:16.7]} 22... Nd3 {[%clk 0:00:14.2]} 23. Bd2 {[%clk 0:00:10.5]} 23... Nxf2
{[%clk 0:00:10.8]} 24. Bf3 {[%clk 0:00:09.2]} 24... Bxf3 {[%clk 0:00:09.4]} 25.
gxf3 {[%clk 0:00:09.1]} 25... Nd3 {[%clk 0:00:09.8]} 26. b3 {[%clk 0:00:07]}
26... Ne5 {[%clk 0:00:09]} 27. Re1 {[%clk 0:00:03.8]} 27... Kf8 {[%clk
0:00:07.9]} 28. Kg2 {[%clk 0:00:02.7]} 28... Ng6 {[%clk 0:00:07.4]} 29. Rxe8+
{[%clk 0:00:03.1]} 29... Kxe8 {[%clk 0:00:07.9]} 30. Nf5 {[%clk 0:00:03.2]}
30... Kf8 {[%clk 0:00:05.6]} 31. Kg3 {[%clk 0:00:02.5]} 31... Ne5 {[%clk
0:00:04.4]} 32. Bf4 {[%clk 0:00:01.8]} 32... Nd3 {[%clk 0:00:04.2]} 33. Bd2
{[%clk 0:00:02.1]} 33... h5 {[%clk 0:00:02.6]} 34. Nd4 {[%clk 0:00:02.2]} 34...
g6 {[%clk 0:00:01.8]} 35. Nc6 {[%clk 0:00:02.1]} 1-0

[Event "Early-Titled-Tuesday-Blitz-October-24-2023"]
[Site "Chess.com"]
[Date "2023.10.24"]
[Round "3"]
[White "AljoschaFeuerstack"]
[Black "Nick12772"]
[Result "0-1"]
[WhiteElo "2614"]
[BlackElo "2379"]
[TimeControl "180+1"]
[EndTime "8:27:46 PDT"]
[Termination "Nick12772 won on time"]

1. Nf3 {[%clk 0:03:00.9]} 1... Nf6 {[%clk 0:03:00.1]} 2. g3 {[%clk 0:03:00.8]}
2... g6 {[%clk 0:03:00.6]} 3. Bg2 {[%clk 0:03:01.7]} 3... Bg7 {[%clk 0:03:01.2]}
4. O-O {[%clk 0:03:01.9]} 4... O-O {[%clk 0:03:02.1]} 5. c4 {[%clk 0:03:01.8]}
5... c5 {[%clk 0:03:02.1]} 6. Nc3 {[%clk 0:03:01.6]} 6... d5 {[%clk 0:03:02.3]}
7. cxd5 {[%clk 0:03:02.5]} 7... Nxd5 {[%clk 0:03:02.8]} 8. Qb3 {[%clk
0:02:45.9]} 8... Nc7 {[%clk 0:03:00.8]} 9. d3 {[%clk 0:02:42.4]} 9... Nc6 {[%clk
0:02:59.6]} 10. Ne4 {[%clk 0:02:37]} 10... b6 {[%clk 0:02:36.1]} 11. Be3 {[%clk
0:02:33]} 11... Rb8 {[%clk 0:02:25.3]} 12. Bf4 {[%clk 0:02:25.7]} 12... Bb7
{[%clk 0:02:21.5]} 13. Rfd1 {[%clk 0:02:21]} 13... Rc8 {[%clk 0:01:37]} 14. Nxc5
{[%clk 0:01:58.1]} 14... Na5 {[%clk 0:01:37]} 15. Nxb7 {[%clk 0:01:57.2]} 15...
Nxb3 {[%clk 0:01:37.2]} 16. Nxd8 {[%clk 0:01:57.5]} 16... Nxa1 {[%clk
0:01:36.4]} 17. Nc6 {[%clk 0:01:38.2]} 17... Nd5 {[%clk 0:01:34.7]} 18. Rxa1
{[%clk 0:00:59.8]} 18... Rxc6 {[%clk 0:01:31.1]} 19. Ne5 {[%clk 0:01:00.1]}
19... Bxe5 {[%clk 0:01:24.5]} 20. Bxe5 {[%clk 0:00:52.1]} 20... Rd8 {[%clk
0:00:59.7]} 21. Kf1 {[%clk 0:00:42.1]} 21... Rc2 {[%clk 0:00:59.3]} 22. Ke1
{[%clk 0:00:42.2]} 22... e6 {[%clk 0:00:53.8]} 23. Kd1 {[%clk 0:00:41.8]} 23...
Rdc8 {[%clk 0:00:51.2]} 24. Bc3 {[%clk 0:00:36.3]} 24... R2xc3 {[%clk
0:00:35.5]} 25. bxc3 {[%clk 0:00:35.5]} 25... Nxc3+ {[%clk 0:00:36.1]} 26. Kd2
{[%clk 0:00:35.9]} 26... Nb5 {[%clk 0:00:31.9]} 27. Rc1 {[%clk 0:00:34.7]} 27...
Rxc1 {[%clk 0:00:32.1]} 28. Kxc1 {[%clk 0:00:35.6]} 28... Nc3 {[%clk 0:00:31.3]}
29. Kb2 {[%clk 0:00:23.8]} 29... Nxe2 {[%clk 0:00:31.3]} 30. Kb3 {[%clk
0:00:24.6]} 30... Nc1+ {[%clk 0:00:29.5]} 31. Kc4 {[%clk 0:00:23.6]} 31... Nxa2
{[%clk 0:00:29.6]} 32. d4 {[%clk 0:00:19.4]} 32... Kf8 {[%clk 0:00:26.1]} 33. d5
{[%clk 0:00:08.4]} 33... exd5+ {[%clk 0:00:24]} 34. Bxd5 {[%clk 0:00:09.3]}
34... Ke7 {[%clk 0:00:20.5]} 35. g4 {[%clk 0:00:08.9]} 35... g5 {[%clk
0:00:17.5]} 36. Be4 {[%clk 0:00:05.9]} 36... h6 {[%clk 0:00:16.2]} 37. Bb1
{[%clk 0:00:06.1]} 37... Nc1 {[%clk 0:00:15.9]} 38. Kb5 {[%clk 0:00:03]} 38...
Nb3 {[%clk 0:00:10.6]} 39. Ka6 {[%clk 0:00:02.9]} 39... Nd2 {[%clk 0:00:08.7]}
40. Bd3 {[%clk 0:00:03.3]} 40... Kd6 {[%clk 0:00:07.7]} 41. Kxa7 {[%clk
0:00:03.2]} 41... Kc5 {[%clk 0:00:08.1]} 42. Ka6 {[%clk 0:00:03.2]} 42... Nb3
{[%clk 0:00:07.5]} 43. Bf5 {[%clk 0:00:02.3]} 43... Nd4 {[%clk 0:00:07.7]} 44.
Bd3 {[%clk 0:00:01.9]} 44... f6 {[%clk 0:00:07.8]} 45. Bf1 {[%clk 0:00:01.2]}
45... Nc6 {[%clk 0:00:08.4]} 0-1

[Event "Early-Titled-Tuesday-Blitz-October-24-2023"]
[Site "Chess.com"]
[Date "2023.10.24"]
[Round "3"]
[White "randomo"]
[Black "ATM622"]
[Result "0-1"]
[WhiteElo "2277"]
[BlackElo "2409"]
[TimeControl "180+1"]
[EndTime "8:27:46 PDT"]
[Termination "ATM622 won on time"]

1. e4 {[%clk 0:02:58.3]} 1... c6 {[%clk 0:02:59.4]} 2. c4 {[%clk 0:02:58.5]}
2... d5 {[%clk 0:02:59.8]} 3. cxd5 {[%clk 0:02:59.4]} 3... cxd5 {[%clk
0:02:59.9]} 4. exd5 {[%clk 0:03:00.3]} 4... Nf6 {[%clk 0:03:00.2]} 5. Bb5+
{[%clk 0:03:00.8]} 5... Bd7 {[%clk 0:02:59.5]} 6. Bc4 {[%clk 0:03:00.5]} 6... b5
{[%clk 0:02:57.1]} 7. Bb3 {[%clk 0:03:00.5]} 7... Na6 {[%clk 0:02:48.7]} 8. d4
{[%clk 0:02:58.2]} 8... g6 {[%clk 0:02:46.6]} 9. Nf3 {[%clk 0:02:53.4]} 9... Bg7
{[%clk 0:02:44.3]} 10. d6 {[%clk 0:02:53.6]} 10... exd6 {[%clk 0:02:41]} 11.
Qe2+ {[%clk 0:02:53.9]} 11... Qe7 {[%clk 0:02:41.2]} 12. Bf4 {[%clk 0:02:52.7]}
12... d5 {[%clk 0:02:38.5]} 13. Nc3 {[%clk 0:02:48.4]} 13... Qxe2+ {[%clk
0:02:36.7]} 14. Kxe2 {[%clk 0:02:48]} 14... O-O-O {[%clk 0:02:07.4]} 15. Rhc1
{[%clk 0:02:35.2]} 15... Rhe8+ {[%clk 0:02:03.8]} 16. Kf1 {[%clk 0:02:35.3]}
16... Kb7 {[%clk 0:01:58.2]} 17. Nxd5 {[%clk 0:02:21]} 17... Bc6 {[%clk
0:01:58.6]} 18. Nxf6 {[%clk 0:02:18.2]} 18... Bxf6 {[%clk 0:01:59.5]} 19. Be5
{[%clk 0:02:10.6]} 19... Bxe5 {[%clk 0:01:45.7]} 20. Nxe5 {[%clk 0:02:11.5]}
20... Bd5 {[%clk 0:01:46.2]} 21. Bxd5+ {[%clk 0:01:42.8]} 21... Rxd5 {[%clk
0:01:44.4]} 22. Nf3 {[%clk 0:01:43.5]} 22... Nb4 {[%clk 0:01:40.2]} 23. a4
{[%clk 0:01:35.5]} 23... a6 {[%clk 0:01:34.6]} 24. axb5 {[%clk 0:01:35.1]} 24...
axb5 {[%clk 0:01:35.5]} 25. Re1 {[%clk 0:01:22.6]} 25... Red8 {[%clk 0:01:21.4]}
26. Re7+ {[%clk 0:01:19.8]} 26... R8d7 {[%clk 0:01:17.7]} 27. Rxd7+ {[%clk
0:01:19.5]} 27... Rxd7 {[%clk 0:01:18.6]} 28. Ke2 {[%clk 0:01:17]} 28... f5
{[%clk 0:01:10.9]} 29. Ra5 {[%clk 0:01:03]} 29... Kb6 {[%clk 0:01:06.1]} 30. Ra8
{[%clk 0:01:03.2]} 30... Nc2 {[%clk 0:01:01.9]} 31. Kd3 {[%clk 0:01:00]} 31...
Nb4+ {[%clk 0:01:00]} 32. Kc3 {[%clk 0:00:57.1]} 32... Nd5+ {[%clk 0:00:58.7]}
33. Kd2 {[%clk 0:00:56.6]} 33... Nf4 {[%clk 0:00:54.6]} 34. Rb8+ {[%clk
0:00:52.8]} 34... Ka5 {[%clk 0:00:53]} 35. g3 {[%clk 0:00:28.4]} 35... Ne6
{[%clk 0:00:40.7]} 36. Kc3 {[%clk 0:00:25.1]} 36... Nc7 {[%clk 0:00:40.1]} 37.
Nd2 {[%clk 0:00:19]} 37... b4+ {[%clk 0:00:35.8]} 38. Kb3 {[%clk 0:00:15.8]}
38... Rxd4 {[%clk 0:00:33.7]} 39. Nc4+ {[%clk 0:00:03.8]} 39... Ka6 {[%clk
0:00:33.9]} 40. Rb6+ {[%clk 0:00:02.9]} 40... Ka7 {[%clk 0:00:33.6]} 41. Rxb4
{[%clk 0:00:02.6]} 41... Nd5 {[%clk 0:00:28.8]} 42. Ra4+ {[%clk 0:00:02.1]}
42... Kb8 {[%clk 0:00:28.3]} 43. Ne5 {[%clk 0:00:01.9]} 43... Rd2 {[%clk
0:00:23.3]} 44. Nc6+ {[%clk 0:00:01.9]} 44... Kc7 {[%clk 0:00:20.2]} 45. Nb4
{[%clk 0:00:01.9]} 45... Nxb4 {[%clk 0:00:19.3]} 46. Rxb4 {[%clk 0:00:02.8]}
46... Rxf2 {[%clk 0:00:19.9]} 47. Rh4 {[%clk 0:00:02.5]} 47... h5 {[%clk
0:00:19.5]} 48. Kb4 {[%clk 0:00:02.2]} 48... Rxb2+ {[%clk 0:00:19.2]} 0-1

[Event "Early-Titled-Tuesday-Blitz-October-24-2023"]
[Site "Chess.com"]
[Date "2023.10.24"]
[Round "3"]
[White "Krakozia"]
[Black "Sokoloco"]
[Result "0-1"]
[WhiteElo "2960"]
[BlackElo "2722"]
[TimeControl "180+1"]
[EndTime "8:27:49 PDT"]
[Termination "Sokoloco won on time"]

1. c4 {[%clk 0:03:00.9]} 1... d6 {[%clk 0:03:00.1]} 2. Nc3 {[%clk 0:02:58.8]}
2... e5 {[%clk 0:03:00.2]} 3. g3 {[%clk 0:02:58.3]} 3... Nc6 {[%clk 0:02:58.6]}
4. Bg2 {[%clk 0:02:54.6]} 4... Be6 {[%clk 0:02:59.3]} 5. d3 {[%clk 0:02:52.6]}
5... Qd7 {[%clk 0:02:59.4]} 6. Rb1 {[%clk 0:02:49.8]} 6... a5 {[%clk 0:02:55.5]}
7. a3 {[%clk 0:02:46.4]} 7... Nf6 {[%clk 0:02:51.9]} 8. Nd5 {[%clk 0:02:45.5]}
8... a4 {[%clk 0:02:29.6]} 9. b3 {[%clk 0:02:13.8]} 9... axb3 {[%clk 0:02:26.4]}
10. Qxb3 {[%clk 0:02:13.1]} 10... Bxd5 {[%clk 0:02:10.8]} 11. cxd5 {[%clk
0:02:11.7]} 11... Nd4 {[%clk 0:01:56.9]} 12. Qd1 {[%clk 0:02:07.3]} 12... Be7
{[%clk 0:01:44.9]} 13. e3 {[%clk 0:02:05.3]} 13... Nb5 {[%clk 0:01:44.7]} 14.
Qb3 {[%clk 0:02:02.6]} 14... c6 {[%clk 0:01:31]} 15. Ne2 {[%clk 0:01:55.9]}
15... O-O {[%clk 0:01:28.5]} 16. O-O {[%clk 0:01:56.4]} 16... Nc7 {[%clk
0:01:15.4]} 17. Qxb7 {[%clk 0:01:55.2]} 17... Nfxd5 {[%clk 0:00:51.6]} 18. Bxd5
{[%clk 0:01:44.9]} 18... cxd5 {[%clk 0:00:51.4]} 19. Nc3 {[%clk 0:01:45.5]}
19... Ra5 {[%clk 0:00:42.4]} 20. Bd2 {[%clk 0:01:30.1]} 20... Rfa8 {[%clk
0:00:43]} 21. a4 {[%clk 0:01:22.7]} 21... R5a7 {[%clk 0:00:37.1]} 22. Qb3 {[%clk
0:01:08.4]} 22... Qe6 {[%clk 0:00:35]} 23. Rfc1 {[%clk 0:01:04.4]} 23... h5
{[%clk 0:00:32.5]} 24. Qd1 {[%clk 0:00:53.7]} 24... h4 {[%clk 0:00:28.5]} 25.
Qh5 {[%clk 0:00:52.9]} 25... hxg3 {[%clk 0:00:23]} 26. hxg3 {[%clk 0:00:51.8]}
26... Ne8 {[%clk 0:00:22.9]} 27. Kg2 {[%clk 0:00:45.1]} 27... Nf6 {[%clk
0:00:23.5]} 28. Qh3 {[%clk 0:00:41.2]} 28... Qxh3+ {[%clk 0:00:21.4]} 29. Kxh3
{[%clk 0:00:42.1]} 29... d4 {[%clk 0:00:20.9]} 30. exd4 {[%clk 0:00:42]} 30...
exd4 {[%clk 0:00:21.8]} 31. Nb5 {[%clk 0:00:36.7]} 31... Rxa4 {[%clk 0:00:22.1]}
32. Rc7 {[%clk 0:00:34.3]} 32... Bf8 {[%clk 0:00:21.2]} 33. Bg5 {[%clk
0:00:23.9]} 33... Nd5 {[%clk 0:00:12.9]} 34. Rc6 {[%clk 0:00:23.7]} 34... Rb8
{[%clk 0:00:12.6]} 35. Rc4 {[%clk 0:00:12.3]} 35... Rxc4 {[%clk 0:00:04.9]} 36.
dxc4 {[%clk 0:00:11.7]} 36... Nc7 {[%clk 0:00:05.6]} 37. Rb3 {[%clk 0:00:05.6]}
37... d5 {[%clk 0:00:05.5]} 38. Nxd4 {[%clk 0:00:03.4]} 38... Rxb3 {[%clk
0:00:06.4]} 39. Nxb3 {[%clk 0:00:03.5]} 39... dxc4 {[%clk 0:00:07.3]} 40. Nd2
{[%clk 0:00:02.8]} 40... c3 {[%clk 0:00:07.8]} 41. Ne4 {[%clk 0:00:03.4]} 41...
c2 {[%clk 0:00:07.9]} 42. Bc1 {[%clk 0:00:03.3]} 42... Nb5 {[%clk 0:00:07.3]}
43. Nd2 {[%clk 0:00:02.5]} 43... Nd4 {[%clk 0:00:07.7]} 44. Nb3 {[%clk
0:00:03.2]} 44... Nxb3 {[%clk 0:00:08.1]} 0-1

[Event "Early-Titled-Tuesday-Blitz-October-24-2023"]
[Site "Chess.com"]
[Date "2023.10.24"]
[Round "3"]
[White "Duhless"]
[Black "SchmakAttack"]
[Result "1-0"]
[WhiteElo "3086"]
[BlackElo "2757"]
[TimeControl "180+1"]
[EndTime "8:27:51 PDT"]
[Termination "Duhless won by resignation"]

1. d4 {[%clk 0:03:00.9]} 1... g6 {[%clk 0:02:59.2]} 2. e4 {[%clk 0:02:59.6]}
2... Bg7 {[%clk 0:02:59.4]} 3. Nc3 {[%clk 0:03:00.2]} 3... d6 {[%clk 0:02:59.6]}
4. f4 {[%clk 0:03:00.6]} 4... a6 {[%clk 0:02:58.4]} 5. Nf3 {[%clk 0:03:00.2]}
5... b5 {[%clk 0:02:58.4]} 6. Bd3 {[%clk 0:03:00.9]} 6... Nd7 {[%clk 0:02:55.8]}
7. e5 {[%clk 0:02:59.3]} 7... c5 {[%clk 0:02:50.6]} 8. Be3 {[%clk 0:02:58.6]}
8... Bb7 {[%clk 0:02:39.6]} 9. O-O {[%clk 0:02:48.4]} 9... Nh6 {[%clk
0:02:11.5]} 10. exd6 {[%clk 0:02:30.3]} 10... cxd4 {[%clk 0:01:53.4]} 11. Nxd4
{[%clk 0:02:02.5]} 11... O-O {[%clk 0:01:42.9]} 12. Be4 {[%clk 0:01:49.4]} 12...
Bxe4 {[%clk 0:01:36.8]} 13. Nxe4 {[%clk 0:01:50.3]} 13... exd6 {[%clk
0:01:37.4]} 14. Qf3 {[%clk 0:01:39.6]} 14... Nc5 {[%clk 0:01:16]} 15. Nc6 {[%clk
0:01:17.7]} 15... Qc7 {[%clk 0:01:13]} 16. Nxc5 {[%clk 0:01:13.4]} 16... dxc5
{[%clk 0:01:13.9]} 17. Bxc5 {[%clk 0:01:13.9]} 17... Rfe8 {[%clk 0:01:14.4]} 18.
Bd4 {[%clk 0:01:11.3]} 18... Nf5 {[%clk 0:01:05.4]} 19. Bxg7 {[%clk 0:01:07]}
19... Kxg7 {[%clk 0:01:06]} 20. Rae1 {[%clk 0:00:45.6]} 20... Rxe1 {[%clk
0:00:45.3]} 21. Rxe1 {[%clk 0:00:40.4]} 21... Rc8 {[%clk 0:00:45.5]} 22. Ne5
{[%clk 0:00:20.5]} 22... Qb6+ {[%clk 0:00:35.6]} 23. Qf2 {[%clk 0:00:17.7]}
23... Qxf2+ {[%clk 0:00:32.4]} 24. Kxf2 {[%clk 0:00:18.6]} 24... Rxc2+ {[%clk
0:00:32.6]} 25. Re2 {[%clk 0:00:19.4]} 25... Rc1 {[%clk 0:00:27.5]} 26. Rd2
{[%clk 0:00:18.6]} 26... h5 {[%clk 0:00:13.3]} 27. g3 {[%clk 0:00:15.3]} 27...
Rh1 {[%clk 0:00:09.1]} 28. Kg2 {[%clk 0:00:13.7]} 28... Ra1 {[%clk 0:00:08.8]}
29. a3 {[%clk 0:00:07.8]} 29... Rb1 {[%clk 0:00:07.6]} 30. h3 {[%clk 0:00:07.2]}
30... h4 {[%clk 0:00:05]} 31. g4 {[%clk 0:00:07.1]} 31... Ng3 {[%clk 0:00:05.6]}
32. Kf3 {[%clk 0:00:04.8]} 32... Rh1 {[%clk 0:00:04]} 33. Rd7 {[%clk 0:00:04.3]}
33... Rxh3 {[%clk 0:00:04]} 34. Kg2 {[%clk 0:00:04.7]} 34... Rh1 {[%clk
0:00:03.6]} 35. Rxf7+ {[%clk 0:00:05]} 35... Kg8 {[%clk 0:00:03.5]} 36. Rf6
{[%clk 0:00:05]} 36... Rb1 {[%clk 0:00:03.2]} 37. Rxg6+ {[%clk 0:00:05.4]} 37...
Kh7 {[%clk 0:00:03.8]} 38. f5 {[%clk 0:00:04.8]} 38... Rxb2+ {[%clk 0:00:03.3]}
39. Kh3 {[%clk 0:00:05.2]} 39... Ne4 {[%clk 0:00:03.7]} 40. Nf7 {[%clk
0:00:03.4]} 40... Rb3+ {[%clk 0:00:01.8]} 41. Kxh4 {[%clk 0:00:03.9]} 41... Rxa3
{[%clk 0:00:02.4]} 42. Re6 {[%clk 0:00:03.9]} 42... Re3 {[%clk 0:00:01.8]} 43.
Rxe4 {[%clk 0:00:03.8]} 43... Rxe4 {[%clk 0:00:02.7]} 44. Ng5+ {[%clk
0:00:04.2]} 1-0